[Event "Late-Titled-Tuesday-Blitz-March-05-2024"]
[Site "Chess.com"]
[Date "2024.03.05"]
[Round "7"]
[White "DanielNaroditsky"]
[Black "SaqoChess_Twitch"]
[Result "1-0"]
[WhiteElo "3087"]
[BlackElo "2649"]
[TimeControl "180+1"]
[EndTime "15:12:48 PST"]
[Termination "DanielNaroditsky won by resignation"]

1. e4 {[%clk 0:02:58.8]} 1... c5 {[%clk 0:02:59.7]} 2. c3 {[%clk 0:02:59]} 2...
d5 {[%clk 0:02:57.1]} 3. exd5 {[%clk 0:02:59.5]} 3... Qxd5 {[%clk 0:02:58]} 4.
d4 {[%clk 0:02:59.7]} 4... Nc6 {[%clk 0:02:54.4]} 5. Nf3 {[%clk 0:02:59.6]} 5...
Bg4 {[%clk 0:02:52.3]} 6. dxc5 {[%clk 0:02:50.3]} 6... Qxc5 {[%clk 0:02:45.4]}
7. Be3 {[%clk 0:02:45.9]} 7... Qf5 {[%clk 0:02:36.8]} 8. Nbd2 {[%clk 0:02:41.3]}
8... Rd8 {[%clk 0:02:35.6]} 9. Qb3 {[%clk 0:02:32.7]} 9... Qc8 {[%clk
0:02:31.5]} 10. Bc4 {[%clk 0:02:24.2]} 10... e6 {[%clk 0:02:30.7]} 11. O-O
{[%clk 0:02:14.1]} 11... Nf6 {[%clk 0:02:30.8]} 12. Bb5 {[%clk 0:02:05.7]} 12...
a6 {[%clk 0:02:14.5]} 13. Bxc6+ {[%clk 0:01:57.2]} 13... Qxc6 {[%clk 0:02:15.4]}
14. Ne5 {[%clk 0:01:51.8]} 14... Qd5 {[%clk 0:02:15.7]} 15. Nxg4 {[%clk
0:01:52.2]} 15... Nxg4 {[%clk 0:01:58.6]} 16. Qa4+ {[%clk 0:01:49.1]} 16... b5
{[%clk 0:01:57.7]} 17. Qxg4 {[%clk 0:01:46.1]} 17... f5 {[%clk 0:01:57.7]} 18.
Qe2 {[%clk 0:01:39.5]} 18... Bd6 {[%clk 0:01:55.7]} 19. c4 {[%clk 0:01:40]}
19... bxc4 {[%clk 0:01:53.8]} 20. Nxc4 {[%clk 0:01:38.9]} 20... Bb8 {[%clk
0:01:48.2]} 21. Rad1 {[%clk 0:01:37.9]} 21... Qb7 {[%clk 0:01:41.1]} 22. Rxd8+
{[%clk 0:01:37.6]} 22... Kxd8 {[%clk 0:01:42]} 23. Rd1+ {[%clk 0:01:37.8]} 23...
Ke7 {[%clk 0:01:41.4]} 24. Bg5+ {[%clk 0:01:33.5]} 24... Kf7 {[%clk 0:01:40.9]}
25. Ne5+ {[%clk 0:01:20.8]} 25... Bxe5 {[%clk 0:01:32.7]} 26. Qxe5 {[%clk
0:01:21.7]} 26... Rc8 {[%clk 0:01:29.5]} 27. h4 {[%clk 0:01:19.7]} 27... h6
{[%clk 0:01:28.1]} 28. Be3 {[%clk 0:01:16]} 28... Qe7 {[%clk 0:01:19.4]} 29. Bd4
{[%clk 0:01:12.2]} 29... Rg8 {[%clk 0:01:16.4]} 30. Re1 {[%clk 0:01:11.1]} 30...
g5 {[%clk 0:01:14.8]} 31. h5 {[%clk 0:01:09.6]} 31... g4 {[%clk 0:01:14.8]} 32.
Rc1 {[%clk 0:01:08.6]} 32... Rd8 {[%clk 0:01:03.9]} 1-0

[Event "Late-Titled-Tuesday-Blitz-March-05-2024"]
[Site "Chess.com"]
[Date "2024.03.05"]
[Round "7"]
[White "Nick12772"]
[Black "EsmeraldasAnderson03"]
[Result "0-1"]
[WhiteElo "2398"]
[BlackElo "2521"]
[TimeControl "180+1"]
[EndTime "15:12:52 PST"]
[Termination "EsmeraldasAnderson03 won by resignation"]

1. Nf3 {[%clk 0:03:00.9]} 1... d5 {[%clk 0:02:56.1]} 2. g3 {[%clk 0:03:00.8]}
2... Nf6 {[%clk 0:02:56]} 3. Bg2 {[%clk 0:03:00.9]} 3... c5 {[%clk 0:02:56.4]}
4. O-O {[%clk 0:03:01.8]} 4... h6 {[%clk 0:02:56.1]} 5. d4 {[%clk 0:03:01.9]}
5... cxd4 {[%clk 0:02:56]} 6. Nxd4 {[%clk 0:03:02.8]} 6... e5 {[%clk 0:02:56.5]}
7. Nb3 {[%clk 0:03:01.4]} 7... Nc6 {[%clk 0:02:54.7]} 8. c4 {[%clk 0:03:01.3]}
8... dxc4 {[%clk 0:02:54.5]} 9. N3d2 {[%clk 0:03:01.9]} 9... Be6 {[%clk
0:02:54]} 10. Qc2 {[%clk 0:02:52.3]} 10... Nd4 {[%clk 0:02:41]} 11. Qd1 {[%clk
0:02:37.6]} 11... Qc7 {[%clk 0:02:28.2]} 12. e3 {[%clk 0:02:34]} 12... Nc6
{[%clk 0:02:27.7]} 13. Nc3 {[%clk 0:02:29.3]} 13... a6 {[%clk 0:02:25.7]} 14. e4
{[%clk 0:02:12.6]} 14... Rd8 {[%clk 0:02:16.7]} 15. Nd5 {[%clk 0:01:41.3]} 15...
Nxd5 {[%clk 0:02:12.8]} 16. exd5 {[%clk 0:01:42.2]} 16... Bxd5 {[%clk
0:02:13.5]} 17. Bxd5 {[%clk 0:01:40.2]} 17... Rxd5 {[%clk 0:02:14.4]} 18. Qf3
{[%clk 0:01:35.2]} 18... Rd3 {[%clk 0:02:09.7]} 19. Qe4 {[%clk 0:01:31.5]} 19...
Rd4 {[%clk 0:01:56.9]} 20. Qe2 {[%clk 0:01:23.4]} 20... b5 {[%clk 0:01:54.1]}
21. a4 {[%clk 0:01:19.9]} 21... Be7 {[%clk 0:01:53.4]} 22. axb5 {[%clk 0:01:20]}
22... axb5 {[%clk 0:01:54.3]} 23. Ra8+ {[%clk 0:01:19.6]} 23... Rd8 {[%clk
0:01:54.3]} 24. Rxd8+ {[%clk 0:01:19.3]} 24... Bxd8 {[%clk 0:01:54]} 25. b3
{[%clk 0:01:02.1]} 25... c3 {[%clk 0:01:41.5]} 26. Ne4 {[%clk 0:00:56.3]} 26...
b4 {[%clk 0:01:41.8]} 27. Qg4 {[%clk 0:00:48.5]} 27... O-O {[%clk 0:01:39.6]}
28. Bxh6 {[%clk 0:00:46.6]} 28... f5 {[%clk 0:01:39.4]} 0-1

[Event "Late-Titled-Tuesday-Blitz-March-05-2024"]
[Site "Chess.com"]
[Date "2024.03.05"]
[Round "7"]
[White "giomar27"]
[Black "GMthekingindian"]
[Result "1-0"]
[WhiteElo "2418"]
[BlackElo "2294"]
[TimeControl "180+1"]
[EndTime "15:13:05 PST"]
[Termination "giomar27 won by resignation"]

1. f3 {[%clk 0:03:00.9]} 1... d5 {[%clk 0:02:59.3]} 2. g3 {[%clk 0:03:01.1]}
2... e5 {[%clk 0:02:59.1]} 3. Nh3 {[%clk 0:03:01.7]} 3... Nf6 {[%clk 0:02:56.9]}
4. Nf2 {[%clk 0:03:02.3]} 4... Nc6 {[%clk 0:02:54.2]} 5. Bg2 {[%clk 0:03:02.8]}
5... Bd7 {[%clk 0:02:52.7]} 6. O-O {[%clk 0:03:03.3]} 6... Be6 {[%clk
0:02:53.2]} 7. d3 {[%clk 0:03:02.7]} 7... Qd7 {[%clk 0:02:53.3]} 8. Nc3 {[%clk
0:03:02.8]} 8... h5 {[%clk 0:02:51.9]} 9. e4 {[%clk 0:03:03.2]} 9... d4 {[%clk
0:02:51]} 10. Ne2 {[%clk 0:03:03.2]} 10... O-O-O {[%clk 0:02:48.4]} 11. h3
{[%clk 0:03:03.1]} 11... Be7 {[%clk 0:02:40.8]} 12. f4 {[%clk 0:03:02.9]} 12...
exf4 {[%clk 0:02:34.1]} 13. gxf4 {[%clk 0:03:02.8]} 13... Qe8 {[%clk 0:02:27.2]}
14. Ng3 {[%clk 0:02:30.7]} 14... h4 {[%clk 0:02:24.4]} 15. Ne2 {[%clk 0:02:31]}
15... g6 {[%clk 0:02:21.1]} 16. Kh2 {[%clk 0:02:26.6]} 16... Nh5 {[%clk
0:02:16.9]} 17. e5 {[%clk 0:02:21.6]} 17... Bd5 {[%clk 0:02:05.9]} 18. Ne4
{[%clk 0:02:21.2]} 18... g5 {[%clk 0:01:53.9]} 19. fxg5 {[%clk 0:02:15.1]} 19...
Nxe5 {[%clk 0:01:50.3]} 20. Nf4 {[%clk 0:02:14.6]} 20... Bxe4 {[%clk 0:01:34.4]}
21. Bxe4 {[%clk 0:02:14.5]} 21... Ng3 {[%clk 0:01:32.9]} 22. Re1 {[%clk
0:02:08.9]} 22... Bxg5 {[%clk 0:01:29.4]} 23. Nd5 {[%clk 0:02:04.5]} 23... Bxc1
{[%clk 0:01:22.3]} 24. Rxc1 {[%clk 0:02:04.3]} 24... f5 {[%clk 0:00:56.9]} 25.
Bg2 {[%clk 0:02:03.7]} 25... Qf7 {[%clk 0:00:42.8]} 26. Rxe5 {[%clk 0:02:02.8]}
26... Rhg8 {[%clk 0:00:32.1]} 27. Re7 {[%clk 0:02:00.9]} 27... Qg6 {[%clk
0:00:27.6]} 28. Rxc7+ {[%clk 0:02:00.5]} 28... Kb8 {[%clk 0:00:27.8]} 29. Rxb7+
{[%clk 0:02:01.4]} 29... Kxb7 {[%clk 0:00:22.6]} 30. Ne7+ {[%clk 0:02:01]} 30...
Kb6 {[%clk 0:00:17.2]} 31. Nxg6 {[%clk 0:02:00.5]} 31... Rxg6 {[%clk 0:00:18.1]}
32. Qf3 {[%clk 0:02:00.5]} 32... Rd7 {[%clk 0:00:18.2]} 33. c3 {[%clk
0:01:58.7]} 33... Rdg7 {[%clk 0:00:17.7]} 34. cxd4 {[%clk 0:01:56.5]} 34... Ka5
{[%clk 0:00:06.6]} 35. Rc5+ {[%clk 0:01:56.5]} 1-0

[Event "Late-Titled-Tuesday-Blitz-March-05-2024"]
[Site "Chess.com"]
[Date "2024.03.05"]
[Round "7"]
[White "NateSolon"]
[Black "Pelusiansky"]
[Result "0-1"]
[WhiteElo "2678"]
[BlackElo "2577"]
[TimeControl "180+1"]
[EndTime "15:13:28 PST"]
[Termination "Pelusiansky won by resignation"]

1. d4 {[%clk 0:03:00.9]} 1... d5 {[%clk 0:02:55.8]} 2. Bf4 {[%clk 0:03:00.5]}
2... Nf6 {[%clk 0:02:53.2]} 3. e3 {[%clk 0:03:00.8]} 3... e6 {[%clk 0:02:53.3]}
4. Nf3 {[%clk 0:03:00.7]} 4... Bd6 {[%clk 0:02:52.7]} 5. Ne5 {[%clk 0:03:01.1]}
5... O-O {[%clk 0:02:50.5]} 6. Nd2 {[%clk 0:03:01.2]} 6... c5 {[%clk 0:02:48.8]}
7. c3 {[%clk 0:03:01.4]} 7... Qc7 {[%clk 0:02:45.8]} 8. Bd3 {[%clk 0:03:01]}
8... Nbd7 {[%clk 0:02:43.7]} 9. Ndf3 {[%clk 0:03:00.4]} 9... Ne4 {[%clk
0:02:39.5]} 10. O-O {[%clk 0:02:59.4]} 10... b6 {[%clk 0:02:36.1]} 11. Qc2
{[%clk 0:02:55.2]} 11... Bb7 {[%clk 0:02:34.8]} 12. Nxd7 {[%clk 0:02:53.4]}
12... Qxd7 {[%clk 0:02:32]} 13. Bxd6 {[%clk 0:02:49.2]} 13... Qxd6 {[%clk
0:02:31.3]} 14. Bxe4 {[%clk 0:02:34.1]} 14... dxe4 {[%clk 0:02:32.2]} 15. Nd2
{[%clk 0:02:34.5]} 15... cxd4 {[%clk 0:02:23.4]} 16. exd4 {[%clk 0:02:15.6]}
16... f5 {[%clk 0:02:13.9]} 17. f3 {[%clk 0:02:10.3]} 17... Ba6 {[%clk
0:01:52.6]} 18. Rfe1 {[%clk 0:02:04.5]} 18... Bd3 {[%clk 0:01:52.3]} 19. Qb3
{[%clk 0:02:03.7]} 19... Qf4 {[%clk 0:01:50.6]} 20. Rad1 {[%clk 0:01:55.7]}
20... Rae8 {[%clk 0:01:43.7]} 21. Nf1 {[%clk 0:01:39.3]} 21... Kh8 {[%clk
0:01:12.8]} 22. Ng3 {[%clk 0:01:39.5]} 22... exf3 {[%clk 0:01:02.7]} 23. gxf3
{[%clk 0:01:39.7]} 23... Ba6 {[%clk 0:00:38.8]} 24. Rxe6 {[%clk 0:01:32.6]}
24... Qxf3 {[%clk 0:00:36.1]} 25. Rde1 {[%clk 0:01:25.2]} 25... Rc8 {[%clk
0:00:35.8]} 26. Re7 {[%clk 0:01:17.5]} 26... f4 {[%clk 0:00:35.3]} 27. Ne4
{[%clk 0:01:06.2]} 27... Qg4+ {[%clk 0:00:29.6]} 28. Kf2 {[%clk 0:01:05]} 28...
Qh4+ {[%clk 0:00:29]} 0-1

[Event "Late-Titled-Tuesday-Blitz-March-05-2024"]
[Site "Chess.com"]
[Date "2024.03.05"]
[Round "7"]
[White "KNVB"]
[Black "Alexei_Gubajdullin"]
[Result "1-0"]
[WhiteElo "2811"]
[BlackElo "2634"]
[TimeControl "180+1"]
[EndTime "15:13:30 PST"]
[Termination "KNVB won by checkmate"]

1. d4 {[%clk 0:03:00.9]} 1... Nf6 {[%clk 0:02:59.1]} 2. Bf4 {[%clk 0:03:01.5]}
2... g6 {[%clk 0:02:59.2]} 3. e3 {[%clk 0:03:01.8]} 3... Bg7 {[%clk 0:02:59.8]}
4. h3 {[%clk 0:03:01.1]} 4... O-O {[%clk 0:03:00.2]} 5. c3 {[%clk 0:03:01.9]}
5... d6 {[%clk 0:03:00.6]} 6. Nf3 {[%clk 0:03:02.7]} 6... Nc6 {[%clk 0:03:01.1]}
7. Bh2 {[%clk 0:03:03.1]} 7... Nd7 {[%clk 0:03:01.3]} 8. a4 {[%clk 0:03:04]}
8... e5 {[%clk 0:03:01.4]} 9. a5 {[%clk 0:03:04.9]} 9... a6 {[%clk 0:03:01.2]}
10. Be2 {[%clk 0:03:03.8]} 10... f5 {[%clk 0:03:00.7]} 11. b4 {[%clk 0:02:57.3]}
11... g5 {[%clk 0:02:59.3]} 12. Na3 {[%clk 0:02:46.3]} 12... g4 {[%clk
0:02:42.7]} 13. hxg4 {[%clk 0:02:36]} 13... fxg4 {[%clk 0:02:43]} 14. Nd2 {[%clk
0:02:36.9]} 14... exd4 {[%clk 0:02:43]} 15. cxd4 {[%clk 0:02:36.4]} 15... Nxd4
{[%clk 0:02:43.1]} 16. exd4 {[%clk 0:01:10]} 16... Qh4 {[%clk 0:02:42.5]} 17.
O-O {[%clk 0:00:55.7]} 17... Bxd4 {[%clk 0:02:40.9]} 18. Ne4 {[%clk 0:00:49.5]}
18... g3 {[%clk 0:02:26.9]} 19. Nxg3 {[%clk 0:00:38.7]} 19... Ne5 {[%clk
0:02:26.7]} 20. Nc2 {[%clk 0:00:19.1]} 20... Ba7 {[%clk 0:02:26]} 21. Ne3 {[%clk
0:00:05.6]} 21... Rxf2 {[%clk 0:02:24.8]} 22. Rxf2 {[%clk 0:00:04]} 22... Bxe3
{[%clk 0:02:23.7]} 23. Qd5+ {[%clk 0:00:03.4]} 23... Kh8 {[%clk 0:02:22.4]} 24.
Rf1 {[%clk 0:00:03.6]} 24... Bg4 {[%clk 0:02:19.7]} 25. Qe4 {[%clk 0:00:03.3]}
25... Ba7 {[%clk 0:02:14.1]} 26. Kh1 {[%clk 0:00:02.9]} 26... Bxf2 {[%clk
0:02:11.6]} 27. Rxf2 {[%clk 0:00:03.8]} 27... Rg8 {[%clk 0:02:10.3]} 28. Rf1
{[%clk 0:00:04]} 28... Qh6 {[%clk 0:02:07.8]} 29. Nf5 {[%clk 0:00:03.1]} 29...
Qh5 {[%clk 0:02:02.5]} 30. Ng3 {[%clk 0:00:01.9]} 30... Qh6 {[%clk 0:01:59]} 31.
Kg1 {[%clk 0:00:01.8]} 31... Bd7 {[%clk 0:01:54.2]} 32. Nf5 {[%clk 0:00:02]}
32... Qf6 {[%clk 0:01:45.8]} 33. Ne3 {[%clk 0:00:02.1]} 33... Qg7 {[%clk
0:01:45.2]} 34. Bxe5 {[%clk 0:00:02.1]} 34... dxe5 {[%clk 0:01:45]} 35. Bf3
{[%clk 0:00:02.7]} 35... Bc6 {[%clk 0:01:44.1]} 36. Qh4 {[%clk 0:00:01.6]} 36...
e4 {[%clk 0:01:39.8]} 37. Bxe4 {[%clk 0:00:01.9]} 37... Qe5 {[%clk 0:01:37.5]}
38. Qxh7# {[%clk 0:00:02.1]} 1-0

[Event "Late-Titled-Tuesday-Blitz-March-05-2024"]
[Site "Chess.com"]
[Date "2024.03.05"]
[Round "7"]
[White "maximnovik"]
[Black "becemix"]
[Result "1-0"]
[WhiteElo "2608"]
[BlackElo "2467"]
[TimeControl "180+1"]
[EndTime "15:13:30 PST"]
[Termination "maximnovik won by resignation"]

1. e4 {[%clk 0:03:00.9]} 1... e5 {[%clk 0:02:58.8]} 2. Nf3 {[%clk 0:03:00.8]}
2... Nc6 {[%clk 0:02:58.9]} 3. Bb5 {[%clk 0:03:01.1]} 3... a6 {[%clk 0:02:59.1]}
4. Ba4 {[%clk 0:03:01.2]} 4... f5 {[%clk 0:02:59.4]} 5. d4 {[%clk 0:03:00.1]}
5... exd4 {[%clk 0:02:57.3]} 6. e5 {[%clk 0:03:00.3]} 6... b5 {[%clk 0:02:36.3]}
7. Bb3 {[%clk 0:03:00.2]} 7... d6 {[%clk 0:02:35.7]} 8. exd6 {[%clk 0:02:49.3]}
8... Bxd6 {[%clk 0:02:34.3]} 9. O-O {[%clk 0:02:49.7]} 9... Na5 {[%clk 0:02:23]}
10. Re1+ {[%clk 0:02:48.5]} 10... Ne7 {[%clk 0:02:23]} 11. Qxd4 {[%clk
0:02:19.4]} 11... Nxb3 {[%clk 0:02:19.8]} 12. axb3 {[%clk 0:02:18.4]} 12... O-O
{[%clk 0:02:19.7]} 13. Bf4 {[%clk 0:02:09.5]} 13... Bb7 {[%clk 0:02:19.3]} 14.
Bxd6 {[%clk 0:02:08.4]} 14... cxd6 {[%clk 0:02:20.2]} 15. Nbd2 {[%clk
0:02:07.7]} 15... Kh8 {[%clk 0:02:13.2]} 16. Ng5 {[%clk 0:02:05.7]} 16... Qd7
{[%clk 0:02:13]} 17. Ne6 {[%clk 0:02:00.1]} 17... Rg8 {[%clk 0:02:12.5]} 18. Nc5
{[%clk 0:01:53.1]} 18... Qc6 {[%clk 0:02:08.6]} 19. Nxb7 {[%clk 0:01:53.1]}
19... Qxb7 {[%clk 0:02:09.5]} 20. Qxd6 {[%clk 0:01:53]} 20... Rad8 {[%clk
0:02:02.2]} 21. Qxe7 {[%clk 0:01:31.5]} 21... Qxe7 {[%clk 0:02:01.1]} 22. Rxe7
{[%clk 0:01:31]} 22... Rxd2 {[%clk 0:02:02]} 23. Rc7 {[%clk 0:01:31.3]} 23...
Rgd8 {[%clk 0:01:59.3]} 24. h4 {[%clk 0:01:31]} 24... Rd1+ {[%clk 0:01:57.1]}
25. Rxd1 {[%clk 0:01:30.5]} 25... Rxd1+ {[%clk 0:01:58]} 26. Kh2 {[%clk
0:01:31.2]} 26... h5 {[%clk 0:01:55.8]} 27. Kg3 {[%clk 0:01:30.1]} 27... Rd2
{[%clk 0:01:50.2]} 28. b4 {[%clk 0:01:29.5]} 28... Rd4 {[%clk 0:01:44.9]} 29. c3
{[%clk 0:01:25.8]} 29... Rd2 {[%clk 0:01:43.4]} 30. Rc6 {[%clk 0:01:22.7]} 30...
Rxb2 {[%clk 0:01:39.9]} 31. Rxa6 {[%clk 0:01:22.7]} 31... Kh7 {[%clk 0:01:39.9]}
32. Rc6 {[%clk 0:01:22]} 32... Rc2 {[%clk 0:01:36]} 33. Kf3 {[%clk 0:01:21.2]}
33... Rb2 {[%clk 0:01:32.5]} 34. g3 {[%clk 0:01:16.8]} 34... Rc2 {[%clk
0:01:31.8]} 35. Ke3 {[%clk 0:01:16.8]} 35... g6 {[%clk 0:01:29.1]} 36. f3 {[%clk
0:01:13.2]} 36... Rg2 {[%clk 0:01:27.8]} 37. Kf4 {[%clk 0:01:12.5]} 37... Rc2
{[%clk 0:01:26.5]} 38. Kg5 {[%clk 0:01:11.2]} 38... Rg2 {[%clk 0:01:26.4]} 39.
Rc7+ {[%clk 0:01:11.1]} 39... Kh8 {[%clk 0:01:26.7]} 40. Kh6 {[%clk 0:01:06.3]}
40... Kg8 {[%clk 0:01:25.3]} 41. Rg7+ {[%clk 0:01:05.9]} 41... Kf8 {[%clk
0:01:23.3]} 42. Rxg6 {[%clk 0:01:06.8]} 42... Rc2 {[%clk 0:01:22.9]} 43. Rg5
{[%clk 0:01:06.6]} 43... Rxc3 {[%clk 0:01:22.8]} 44. Rxf5+ {[%clk 0:01:06.9]}
44... Ke7 {[%clk 0:01:22.2]} 45. Kxh5 {[%clk 0:01:07.6]} 1-0

[Event "Late-Titled-Tuesday-Blitz-March-05-2024"]
[Site "Chess.com"]
[Date "2024.03.05"]
[Round "7"]
[White "lamomiajunior"]
[Black "guillembaches"]
[Result "1-0"]
[WhiteElo "2723"]
[BlackElo "2543"]
[TimeControl "180+1"]
[EndTime "15:13:38 PST"]
[Termination "lamomiajunior won by checkmate"]

1. d4 {[%clk 0:03:00.9]} 1... d5 {[%clk 0:02:57]} 2. c4 {[%clk 0:03:01]} 2... e6
{[%clk 0:02:56.2]} 3. Nc3 {[%clk 0:03:01.4]} 3... a6 {[%clk 0:02:56.6]} 4. cxd5
{[%clk 0:02:59.6]} 4... exd5 {[%clk 0:02:57.5]} 5. Nf3 {[%clk 0:03:00.4]} 5...
Nf6 {[%clk 0:02:57.6]} 6. Bg5 {[%clk 0:03:00.1]} 6... Be6 {[%clk 0:02:57.8]} 7.
e3 {[%clk 0:03:00.2]} 7... Nbd7 {[%clk 0:02:58.1]} 8. Bd3 {[%clk 0:03:00.5]}
8... Bd6 {[%clk 0:02:58.3]} 9. O-O {[%clk 0:03:00.5]} 9... c6 {[%clk 0:02:58.7]}
10. Qc2 {[%clk 0:03:00]} 10... Qc7 {[%clk 0:02:58.8]} 11. Rfe1 {[%clk
0:02:55.6]} 11... h6 {[%clk 0:02:57.2]} 12. Bh4 {[%clk 0:02:55.9]} 12... g5
{[%clk 0:02:57.2]} 13. Bg3 {[%clk 0:02:56.2]} 13... Bxg3 {[%clk 0:02:57.3]} 14.
hxg3 {[%clk 0:02:57.1]} 14... Qd6 {[%clk 0:02:57.5]} 15. Rab1 {[%clk 0:02:53.3]}
15... Rg8 {[%clk 0:02:54.1]} 16. Rbd1 {[%clk 0:02:44.8]} 16... h5 {[%clk
0:02:52.4]} 17. e4 {[%clk 0:02:44.7]} 17... dxe4 {[%clk 0:02:52.1]} 18. Nxe4
{[%clk 0:02:45.6]} 18... Nxe4 {[%clk 0:02:51.5]} 19. Bxe4 {[%clk 0:02:46.5]}
19... Nf6 {[%clk 0:02:37.1]} 20. Bf5 {[%clk 0:02:40.1]} 20... O-O-O {[%clk
0:02:30.6]} 21. Bxe6+ {[%clk 0:02:30.3]} 21... fxe6 {[%clk 0:02:30.5]} 22. Ne5
{[%clk 0:02:31.2]} 22... Rdf8 {[%clk 0:02:15.7]} 23. Nc4 {[%clk 0:02:25.3]}
23... Qd8 {[%clk 0:01:52.2]} 24. Rxe6 {[%clk 0:02:21]} 24... h4 {[%clk
0:01:47.1]} 25. d5 {[%clk 0:02:18.1]} 25... hxg3 {[%clk 0:01:06.7]} 26. dxc6
{[%clk 0:02:17.5]} 26... gxf2+ {[%clk 0:01:06.7]} 27. Kf1 {[%clk 0:02:17.9]}
27... Qc7 {[%clk 0:00:46.8]} 28. Nb6+ {[%clk 0:02:00.5]} 28... Kb8 {[%clk
0:00:32.6]} 29. Qb3 {[%clk 0:01:19.6]} 29... Qh2 {[%clk 0:00:17.3]} 30. Nd7+
{[%clk 0:01:18.5]} 30... Nxd7 {[%clk 0:00:05.2]} 31. Qxb7# {[%clk 0:01:18.8]}
1-0

[Event "Late-Titled-Tuesday-Blitz-March-05-2024"]
[Site "Chess.com"]
[Date "2024.03.05"]
[Round "7"]
[White "JSPrepz"]
[Black "Antipov_Mikhail_Al"]
[Result "1-0"]
[WhiteElo "2852"]
[BlackElo "2934"]
[TimeControl "180+1"]
[EndTime "15:13:43 PST"]
[Termination "JSPrepz won by resignation"]

1. e4 {[%clk 0:03:00.9]} 1... c5 {[%clk 0:02:58.6]} 2. Nf3 {[%clk 0:03:01.1]}
2... e6 {[%clk 0:02:58.2]} 3. c3 {[%clk 0:03:00.4]} 3... Nf6 {[%clk 0:02:57]} 4.
Bd3 {[%clk 0:03:00.6]} 4... d5 {[%clk 0:02:36.6]} 5. e5 {[%clk 0:03:00.9]} 5...
Nfd7 {[%clk 0:02:26.6]} 6. Bc2 {[%clk 0:03:01.6]} 6... d4 {[%clk 0:02:26.9]} 7.
O-O {[%clk 0:02:59.1]} 7... Nc6 {[%clk 0:02:22.5]} 8. Re1 {[%clk 0:02:58.4]}
8... Be7 {[%clk 0:02:18.4]} 9. Qe2 {[%clk 0:02:48.3]} 9... g5 {[%clk 0:02:01.3]}
10. h3 {[%clk 0:02:36]} 10... h5 {[%clk 0:02:01]} 11. Qe4 {[%clk 0:02:36.7]}
11... Qc7 {[%clk 0:01:11.7]} 12. Na3 {[%clk 0:02:35.7]} 12... a6 {[%clk
0:01:04.4]} 13. Nc4 {[%clk 0:02:35.9]} 13... b5 {[%clk 0:00:23.7]} 14. Nd6+
{[%clk 0:02:35.6]} 14... Bxd6 {[%clk 0:00:23.5]} 15. exd6 {[%clk 0:02:36.5]}
15... Qxd6 {[%clk 0:00:24.3]} 16. Nxg5 {[%clk 0:02:30.6]} 16... Bb7 {[%clk
0:00:04.9]} 17. Nxf7 {[%clk 0:02:30.9]} 17... Kxf7 {[%clk 0:00:05.4]} 18. Qg6+
{[%clk 0:02:31.1]} 18... Kf8 {[%clk 0:00:05.2]} 19. Rxe6 {[%clk 0:02:31.3]}
19... Qf4 {[%clk 0:00:05.1]} 20. d3 {[%clk 0:02:17.3]} 20... Qf7 {[%clk
0:00:04.7]} 21. Bh6+ {[%clk 0:02:16.7]} 21... Rxh6 {[%clk 0:00:04.4]} 22. Qxh6+
{[%clk 0:02:17.6]} 22... Qg7 {[%clk 0:00:04.1]} 23. Rxc6 {[%clk 0:01:51.3]}
23... Bxc6 {[%clk 0:00:05]} 24. Qxc6 {[%clk 0:01:51.4]} 24... Re8 {[%clk
0:00:05.9]} 25. Bb3 {[%clk 0:01:43.9]} 25... dxc3 {[%clk 0:00:05.4]} 26. bxc3
{[%clk 0:01:43.7]} 26... Re7 {[%clk 0:00:04.1]} 27. Qc8+ {[%clk 0:01:35.6]}
27... Re8 {[%clk 0:00:04]} 28. Qxa6 {[%clk 0:01:36.3]} 28... Re7 {[%clk
0:00:03.6]} 29. Qxb5 {[%clk 0:01:33.9]} 29... Qxc3 {[%clk 0:00:03.4]} 30. Rf1
{[%clk 0:01:31.6]} 30... Ne5 {[%clk 0:00:02.7]} 31. Qb8+ {[%clk 0:01:30.9]}
31... Kg7 {[%clk 0:00:02.5]} 32. Qg8+ {[%clk 0:01:31]} 32... Kh6 {[%clk
0:00:03]} 33. f4 {[%clk 0:01:18.3]} 33... Nxd3 {[%clk 0:00:01.9]} 34. Qg5+
{[%clk 0:01:17.3]} 34... Kh7 {[%clk 0:00:01.8]} 35. Qxe7+ {[%clk 0:01:17.6]} 1-0

[Event "Late-Titled-Tuesday-Blitz-March-05-2024"]
[Site "Chess.com"]
[Date "2024.03.05"]
[Round "7"]
[White "protectiago"]
[Black "JaackCamel"]
[Result "0-1"]
[WhiteElo "2059"]
[BlackElo "2196"]
[TimeControl "180+1"]
[EndTime "15:13:44 PST"]
[Termination "JaackCamel won on time"]

1. d4 {[%clk 0:02:59.6]} 1... d5 {[%clk 0:02:59.2]} 2. c4 {[%clk 0:02:59.3]}
2... e6 {[%clk 0:02:59.1]} 3. g3 {[%clk 0:02:57.8]} 3... c6 {[%clk 0:02:59]} 4.
Nf3 {[%clk 0:02:55.4]} 4... dxc4 {[%clk 0:02:58.9]} 5. Bg2 {[%clk 0:02:48.9]}
5... b5 {[%clk 0:02:58.3]} 6. O-O {[%clk 0:02:40.2]} 6... Bb7 {[%clk 0:02:57.7]}
7. Qc2 {[%clk 0:02:40.4]} 7... Nf6 {[%clk 0:02:55.8]} 8. Rd1 {[%clk 0:02:16.1]}
8... Nbd7 {[%clk 0:02:54.9]} 9. a4 {[%clk 0:02:10.3]} 9... a6 {[%clk 0:02:53.2]}
10. e4 {[%clk 0:01:55.7]} 10... h6 {[%clk 0:02:52.1]} 11. Nbd2 {[%clk
0:01:39.2]} 11... Be7 {[%clk 0:02:50.5]} 12. e5 {[%clk 0:01:39.4]} 12... Nd5
{[%clk 0:02:49.9]} 13. Ne4 {[%clk 0:01:28.5]} 13... O-O {[%clk 0:02:49]} 14. Bd2
{[%clk 0:01:15.3]} 14... c5 {[%clk 0:02:43]} 15. dxc5 {[%clk 0:01:08.5]} 15...
Nxc5 {[%clk 0:02:41.5]} 16. axb5 {[%clk 0:00:35.7]} 16... axb5 {[%clk
0:02:40.5]} 17. Rxa8 {[%clk 0:00:30.5]} 17... Qxa8 {[%clk 0:02:39.1]} 18. Nxc5
{[%clk 0:00:18.4]} 18... Bxc5 {[%clk 0:02:38.3]} 19. Be1 {[%clk 0:00:12.1]}
19... Nb4 {[%clk 0:02:36.6]} 20. Qe2 {[%clk 0:00:11.6]} 20... Nd3 {[%clk
0:02:33.4]} 21. Nh4 {[%clk 0:00:10.3]} 21... Rc8 {[%clk 0:02:09.1]} 22. Bxb7
{[%clk 0:00:09.4]} 22... Qxb7 {[%clk 0:02:09]} 23. Ng2 {[%clk 0:00:09.1]} 23...
Qb6 {[%clk 0:02:06.7]} 24. Rd2 {[%clk 0:00:07.6]} 24... Ra8 {[%clk 0:02:03]} 25.
b3 {[%clk 0:00:07.7]} 25... Ra1 {[%clk 0:01:58.3]} 26. bxc4 {[%clk 0:00:07.8]}
26... bxc4 {[%clk 0:01:51.1]} 27. Ra2 {[%clk 0:00:01.9]} 27... Bxf2+ {[%clk
0:01:31.5]} 28. Kf1 {[%clk 0:00:02.2]} 28... Rb1 {[%clk 0:01:06.3]} 0-1